Cogmind - Beta 17 @@@ ROGUE MODE // 2026.07.25 @ 19:51:19 Player: Suffixing Result: Destroyed by 8R-AWN with 8R-AWN's Boregun Performance ------------- Evolutions (0) 0 Regions Visited (3) 600 Robots Destroyed (25) 125 Value Destroyed (331) 331 Prototype IDs (3) 60 Alien Tech Used (0) 0 Bonus (0) 0 TOTAL SCORE: 1116 Bonus ------- None Cogmind --------- Core Integrity 0/250 Matter 74/300 Energy 265/265 System Corruption 0% Temperature Cool (53) Movement Core (1300) Ox25 Location -10/Exiles Parts ------- > --- POWER (1) -------- Reinforced Ion Engine > --- PROPULSION (2) --- (None) > --- UTILITY (2) ------ Large Storage Unit High-capacity Storage Unit > --- WEAPON (2) ------- 8R-AWN's Boregun > --- INVENTORY (20) --- Ion Engine Light Ion Engine Reinforced Ion Engine Light Treads Light Treads Light Treads Light Treads Compact Wheel High-capacity Matter Pod (200) Rocket Launcher Peak State ------------ > --- POWER ------------ Reinforced Ion Engine > --- PROPULSION ------- Light Treads > --- UTILITY ---------- Large Storage Unit High-capacity Storage Unit > --- WEAPON ----------- Light Assault Rifle 8R-AWN's Boregun > --- INVENTORY -------- Ion Engine Light Ion Engine Reinforced Ion Engine Light Treads Light Treads Light Treads Light Treads Compact Wheel High-capacity Matter Pod Light Assault Rifle Rocket Launcher [Rating: 17] Favorites ----------- Power Light Ion Engine Engine Light Ion Engine Propulsion Light Treads Treads Light Treads Leg Aluminum Leg Utility High-capacity Storage Unit Storage High-capacity Storage Unit Weapon Assault Rifle Ballistic Gun Assault Rifle Launcher Rocket Launcher Build | -11 -10 -10 -10 ------- Run | Yrd Mat Min Exi Slots Evolved . | . . . . Power . | . . . . Propulsion . | . . . . Utility . | . . . . Weapon . | . . . . Parts Attached 10 | 2 1 . 7 Power 1 | . . . 1 Engine 1 | . . . 1 Core . | . . . . Reactor . | . . . . Propulsion 2 | 2 . . . Treads 2 | 2 . . . Leg . | . . . . Wheel . | . . . . Hover . | . . . . Flight . | . . . . Utility 2 | . 1 . 1 Device . | . . . . Storage 2 | . 1 . 1 Processor . | . . . . Hackware . | . . . . Protection . | . . . . Artifact . | . . . . Weapon 5 | . . . 5 Energy Gun . | . . . . Energy Cannon . | . . . . Ballistic Gun 4 | . . . 4 Ballistic Cannon . | . . . . Launcher 1 | . . . 1 Special Weapon . | . . . . Impact Weapon . | . . . . Slashing Weapon . | . . . . Piercing Weapon . | . . . . Special Melee Weapon . | . . . . Unidentified Prototypes 1 | . . . 1 Parts Lost 6 | . . . 6 Power . | . . . . Propulsion 2 | . . . 2 Utility . | . . . . Weapon 4 | . . . 4 Highest Loss Streak 5 | . . . 5 To Critical Strikes 3 | . . . 3 Average Backups 12 | 5 9 14 14 Power 4 | 1 3 5 5 Propulsion 4 | 3 3 5 4 Utility . | . . 1 1 Weapon 2 | 1 1 2 2 Tool/Special . | . . . . Unused Backups 19 | . 5 . 14 Power 7 | . 1 . 6 Propulsion 6 | . . . 6 Utility 3 | . 2 . 1 Weapon 3 | . 2 . 1 Tool/Special . | . . . . Average Slot Usage (%) 84 | . 85 85 84 Engine 14 | . 14 14 14 Treads 27 | . 28 28 26 Storage 14 | . 14 14 14 Ballistic Gun 27 | . 28 28 27 Peak Build Rating 17 | 6 7 8 17 Average Rating 7 | 6 6 7 9 On Entrance 6 | 6 6 7 8 Avg Prop Armor Cover (%) . | . . . . Naked Turns . | . . . . Heaviest Build 54 | 12 47 47 54 Greatest Support 40 | 40 40 40 40 Greatest Overweight (x) 1 | . 1 1 1 Average Overweight (x) . | . . 1 . Largest Inventory Capacity 20 | 8 20 20 20 Average Capacity 19 | 8 19 20 18 Most Carried 20 | 5 14 18 20 Average Carried 13 | 4 9 15 17 Final Capacity 20 | 8 20 20 20 Final Carried 18 | 3 13 18 10 Class Distribution -------------------- 100% | Mutant Dominant Class ---------------- Mutant | -10/Materials Mutant | -10/Mines Mutant | -10/Exiles Resources | -11 -10 -10 -10 ----------- Run | Yrd Mat Min Exi Matter Collected 581 | 220 238 54 69 Remotely . | . . . . Salvage Created 701 | . 584 116 1 Parts 55 | . 43 12 . Haulers Intercepted 2 | . 2 . . Recyclers Shooed 1 | . 1 . . Parts Field Recycled . | . . . . Retrieved Matter . | . . . . Parts Self-Destructed . | . . . . Prevented . | . . . . Parts Restored . | . . . . Kills | -11 -10 -10 -10 ------- Run | Yrd Mat Min Exi Combat Hostiles Destroyed 21 | . 12 6 3 Guns 18 | . 12 6 . AOE 3 | . . . 3 Classes Destroyed 7 | . 5 1 1 Tunneler 1 | . . 1 . Hauler 2 | . 2 . . Recycler 2 | . 2 . . Operator 2 | . 2 . . Swarmer 14 | . 8 6 . Grunt 4 | . 4 . . Assembled 3 | . . . 3 Best Kill Streak 5 | . 5 3 3 Combat Bots Only 5 | . 5 3 3 Max Kills in Single Turn 3 | . 1 2 3 Gunslinging . | . . . . Exploded 3 | . . . 3 Melee . | . . . . Uniques/NPCs Destroyed . | . . . . Combat | -11 -10 -10 -10 -------- Run | Yrd Mat Min Exi Hostile Shots Fired 120 | . 43 19 58 Missed 22 | . 8 4 10 Hits 98 | . 35 15 48 Projectile 98 | . 35 15 48 Critical Strikes 20 | . . . 20 Damage Taken 1268 | . 301 117 850 Core 251 | . 44 13 194 Absorbed by Shields . | . . . . Core Remaining (%) 100 | 100 . . . Volleys Fired 86 | . 38 9 39 Largest 2 | . 2 2 2 Hottest 50 | . 40 40 50 Shots Fired 157 | . 76 18 63 Gun 154 | . 76 18 60 Cannon . | . . . . Launcher 3 | . . . 3 Special . | . . . . Kinetic 154 | . 76 18 60 Thermal . | . . . . Explosive 3 | . . . 3 Electromagnetic . | . . . . Robot Hit Streak 13 | . 13 5 13 Robot Miss Streak 3 | . 2 3 2 Penetration Max . | . . . . Secondary Targets 2 | . 1 1 . Max Gunslinging Chain 1 | . 1 1 . Shots Hit Robots 110 | . 51 9 50 Core Hits 46 | . 24 7 15 Critical Kills . | . . . . Critical Parts Destroyed 2 | . . . 2 Critical Strikes 8 | . . . 8 Destroy 8 | . . . 8 Melee Attacks . | . . . . Impact . | . . . . Slashing . | . . . . Piercing . | . . . . Sneak Attacks . | . . . . Combat Hostiles . | . . . . Follow-up Attacks . | . . . . Damage Inflicted 1633 | . 671 132 830 Guns 1388 | . 650 124 614 Cannons . | . . . . Explosions 213 | . . . 213 Melee . | . . . . Ramming 32 | . 21 8 3 Kinetic 1388 | . 650 124 614 Thermal . | . . . . Explosive 213 | . . . 213 Electromagnetic . | . . . . Impact . | . . . . Slashing . | . . . . Piercing . | . . . . Highest Corruption . | . . . . Average Corruption . | . . . . Corruption Purged . | . . . . Corruption Blocked . | . . . . Overload Shots . | . . . . Overflow Damage 16 | . . . 16 Projectiles . | . . . . Explosions 16 | . . . 16 Melee . | . . . . Knockbacks . | . . . . Impact . | . . . . Kinetic . | . . . . Secondary . | . . . . Self-Inflicted Damage . | . . . . Shots . | . . . . Rammed 5 | . 3 1 1 Targets Rammed 6 | . 4 1 1 Kicked . | . . . . Crushed 1 | . 1 . . Highest Temperature 82 | . . . 82 Average Temperature 38 | . . . 38 Received Heat Transfer 54 | . 54 . . Siege Activations . | . . . . Martial Activations . | . . . . Shielding Activations . | . . . . Robots Disrupted . | . . . . Combat Hostiles . | . . . . Robots Corrupted . | . . . . Combat Hostiles . | . . . . Parts Fried . | . . . . Impact Corruptions . | . . . . Robots Melted . | . . . . Combat Hostiles . | . . . . Parts Melted . | . . . . Heat Transferred . | . . . . Parts Sabotaged . | . . . . Parts Stolen . | . . . . Parts Stripped . | . . . . Power Chain Reactions . | . . . . Alert | -11 -10 -10 -10 ------- Run | Yrd Mat Min Exi Maximum Alert Level . | . . . . Low Security (%) 100 | 100 100 100 . Level 1 . | . . . . Level 2 . | . . . . Level 3 . | . . . . Level 4 . | . . . . Level 5 . | . . . . High Security . | . . . . Max Security . | . . . . Peak Influence 112 | . 112 70 . Initial . | . . . . Average 16 | . 23 7 . Influence Increases 499 | . 339 160 . Destroy 0b10 Robot/C 360 | . 240 120 . Destroy 0b10 Robot/NC 35 | . 30 5 . Destroy Leader 74 | . 54 20 . Lose Combat Pursuer 30 | . 15 15 . Influence Decreases 499 | . 339 160 . Time Decay 499 | . 339 160 . Squads Dispatched 3 | . 3 . . Investigation 1 | . 1 . . Extermination . | . . . . Reinforcement 2 | . 2 . . Assault . | . . . . Garrison . | . . . . Intercept . | . . . . Searches Triggered . | . . . . Construction Impeded . | . . . . Haulers Reinforced . | . . . . Active Scanning Responses . | . . . . Cargo Convoy Interrupts . | . . . . Stealth | -11 -10 -10 -10 --------- Run | Yrd Mat Min Exi Distress Signals 4 | . 4 . . Communications Jammed . | . . . . Distress Signals . | . . . . Times Spotted 35 | . 23 7 5 Peak Tracking Total 11 | . 5 3 11 Tactical Retreats 3 | . 1 1 1 Traps | -11 -10 -10 -10 ------- Run | Yrd Mat Min Exi Traps Triggered 1 | . 1 . . Indirectly . | . . . . Trap Hack Attempts . | . . . . Triggered . | . . . . Disarmed . | . . . . Reprogrammed . | . . . . Reused 3 | . . . 3 Traps Extracted . | . . . . Installed 3 | . . . 3 Triggered . | . . . . Most Traps Carried 3 | . . 3 3 Machines | -11 -10 -10 -10 ---------- Run | Yrd Mat Min Exi Machines Disabled 6 | . . . 6 Max in Single Turn 2 | . . . 2 Machines Repaired . | . . . . Machines Dismantled . | . . . . Machines Sabotaged . | . . . . Overloaded Fab Kills . | . . . . Hacking | -11 -10 -10 -10 --------- Run | Yrd Mat Min Exi Machines Accessed 1 | . 1 . . Terminals 1 | . 1 . . Fabricators . | . . . . Repair Stations . | . . . . Recycling Units . | . . . . Scanalyzers . | . . . . Garrison Access . | . . . . Total Hacks 1 | . 1 . . Successful 1 | . 1 . . Failed . | . . . . Catastrophic . | . . . . Database Lockouts . | . . . . Manual . | . . . . Terminals 1 | . 1 . . Fabricators . | . . . . Repair Stations . | . . . . Recycling Units . | . . . . Scanalyzers . | . . . . Garrison Access . | . . . . Terminal Hacks 1 | . 1 . . Prototype ID Bank 1 | . 1 . . Fabricator Hacks . | . . . . Repair Station Hacks . | . . . . Recycling Unit Hacks . | . . . . Scanalyzer . | . . . . Garrison Access Hacks . | . . . . Unauthorized Hacks . | . . . . Terminals . | . . . . Fabricators . | . . . . Repair Stations . | . . . . Recycling Units . | . . . . Scanalyzers . | . . . . Garrison Access . | . . . . Data Cores Recovered . | . . . . Used . | . . . . Hacking Detections . | . . . . Full Trace Events . | . . . . Feedback Events . | . . . . Feedback Blocked . | . . . . Robot Schematics Acquired . | . . . . Robots Built . | . . . . Authchips . | . . . . Time . | . . . . Total Robot Build Rating . | . . . . Part Schematics Acquired . | . . . . Parts Built . | . . . . Authchips . | . . . . Time . | . . . . Total Part Build Rating . | . . . . Part Studies Acquired . | . . . . Parts Repaired . | . . . . Time . | . . . . Parts Recycled . | . . . . Recycled Matter . | . . . . Retrieved Matter . | . . . . Retrieved Components . | . . . . Parts Scanalyzed . | . . . . Part Schematics Acquired . | . . . . Parts Damaged . | . . . . Bothacking | -11 -10 -10 -10 ------------ Run | Yrd Mat Min Exi Used RIF Installer . | . . . . Robots Hacked . | . . . . Non-combat . | . . . . Combat . | . . . . Robot Hacks Applied . | . . . . Relay Couplers Released . | . . . . Fabnet Peak Effective % . | . . . . Robots Rewired . | . . . . Allies Hacked . | . . . . Hacks Repelled . | . . . . Allies | -11 -10 -10 -10 -------- Run | Yrd Mat Min Exi Total Allies 3 | . . 3 . Largest Group 3 | . . 3 3 Highest-Rated Group 40 | . . 40 40 Highest-Rated Ally 16 | . . 16 16 Total Orders 5 | . . . 5 STAY 2 | . . . 2 ROAM 1 | . . . 1 FOLLOW 2 | . . . 2 Ally Attacks 12 | . . . 12 Total Damage 99 | . . . 99 Kills 2 | . . . 2 Allies Corrupted . | . . . . Allies Melted . | . . . . Intel | -11 -10 -10 -10 ------- Run | Yrd Mat Min Exi Active Infowar (turns) . | . . . . Robot Analysis Total . | . . . . Derelict Logs Recovered 2 | . . 2 . Drone Launches . | . . . . Drone Recoveries . | . . . . Exploration | -11 -10 -10 -10 ------------- Run | Yrd Mat Min Exi Turns Passed 3822 | 8 1326 1222 1266 Spaces Moved 1541 | 3 495 495 548 Core . | . . . . Treads 1541 | 3 495 495 548 Legs . | . . . . Wheels . | . . . . Hover . | . . . . Flight . | . . . . Fastest Speed 160 | 160 160 240 160 Average Speed 226 | 160 238 240 204 Slowest Speed 240 | 160 240 240 240 Overloaded Moves . | . . . . Propulsion Burnouts . | . . . . Robots Hopped . | . . . . Potential Cave-ins . | . . . . Cave-ins Triggered . | . . . . Exploration Rate (%) 61 | 2 80 98 67 Regions Visited 3 Branch Regions 2 Pre-discovered Areas . | . . . . Known Exits Taken . | . . . . Unknown Exits Taken 3 | 1 1 1 . Scrap Searched 1 | . . 1 . Spaces Dug . | . . . . Terrain Destroyed 30 | . . . 30 Melee . | . . . . Projectile 8 | . . . 8 AOE 21 | . . . 21 Terrain Rammed . | . . . . Walls Destroyed . | . . . . Machines Disabled . | . . . . Actions | -11 -10 -10 -10 --------- Run | Yrd Mat Min Exi Total 1713 | 7 559 511 636 Wait 28 | . 8 2 18 Move 1538 | 2 494 494 548 Hop . | . . . . Pick Up 24 | . 12 5 7 Fast Attach . | . . . . Attach 4 | . . . 4 Detach . | . . . . Swap 8 | 2 1 . 5 Drop 16 | 3 2 . 11 Fire 86 | . 38 9 39 Melee . | . . . . Ram . | . . . . Kick . | . . . . Crush 6 | . 4 1 1 Escape Stasis . | . . . . Rewire . | . . . . Trap 3 | . . . 3 Miscellaneous . | . . . . Route ------- -11/Scrapyard -10/Materials (discovered 4 exits: [*Mat x3] / [*Min]) -10/Mines (discovered 3 exits: [*Mat x2] / [*Exi]) -10/Exiles History --------- Turn | Location | Event 6 | -11/Scrapyard | Discovered new exit (range 2) 9 | -11/Scrapyard | Entered Materials 302 | -10/Materials | Build established: Mutant 408 | -10/Materials | Discovered new exit (range 16) 782 | -10/Materials | Discovered new exit (range 13) 973 | -10/Materials | Discovered new exit (range 15) 1133 | -10/Materials | Discovered new exit (range 15) 1335 | -10/Materials | Entered Mines 1440 | -10/Mines | Deemed a non-threat by the Exiles lab entrance 1533 | -10/Mines | Learned Materials emergency access door positions 1571 | -10/Mines | Discovered new exit (range 15) 2153 | -10/Mines | Discovered new exit (range 5) 2162 | -10/Mines | Learned Materials stockpile data 2186 | -10/Mines | Assisted by bots powering up and referring to "LRC-V3" 2311 | -10/Mines | Found a hidden stash of uninstalled traps 2548 | -10/Mines | Discovered new exit (range 5) 2557 | -10/Mines | Entered Exiles 2557 | -10/Exiles | Accompanied by 3 allies 2622 | -10/Exiles | Met 8R-AWN 2668 | -10/Exiles | Met EX-HEX 2759 | -10/Exiles | Met EX-DEC 2839 | -10/Exiles | Visited The Gauntlet 3042 | -10/Exiles | Met EX-BIN 3313 | -10/Exiles | Warned about trapping Exiles lab 3636 | -10/Exiles | Attacked by the Exiles 3758 | -10/Exiles | Found Prototype Ballistic Gun 3760 | -10/Exiles | Identified 8R-AWN's Boregun 3785 | -10/Exiles | Core integrity fell below 50% 3797 | -10/Exiles | Core integrity fell below 20% 3805 | -10/Exiles | Lost 5 parts (2n3w) 3823 | -10/Exiles | Destroyed by 8R-AWN with 8R-AWN's Boregun Last Messages --------------- 03799_ Penetrated by HV Slug. 03801_ HV Slug penetrates 8R-AWN. 03802_ Penetrated by HV Slug. 03804_ HV Slug penetrates 8R-AWN. 03804_ 8R-AWN suffers critical hit (Destroy). 03805_ HV Slug penetrates Earth. 03807_ HV Slug penetrates 8R-AWN. 03808_ Penetrated by HV Slug. 03808_ Lgt. Assault Rifle destroyed. 03810_ HV Slug penetrates 8R-AWN. 03812_ Penetrated by HV Slug. 03814_ HV Slug penetrates 8R-AWN. 03815_ Penetrated by HV Slug. 03816_ HV Slug penetrates Wall. 03818_ HV Slug penetrates 8R-AWN. 03819_ Penetrated by HV Slug. 03820_ HV Slug penetrates 8R-AWN. 03820_ 8R-AWN suffers critical hit (Destroy). 03822_ HV Slug penetrates 8R-AWN. 03823_ Penetrated by HV Slug. Map ----- +----------------------------------------------------+ | ?????????????????????????????????????????????????? | | ?????????????????????????????????????????????????? | | ?????????????????????????????????????????????????? | | ?????????????????????????????????????????????????? | | ?????????????????????????????????????????????????? | | ?????????????????????????????????????????????????? | | ?????????????????????????????????????????????????? | | ?????????????????????????????????????????????????? | | ?????????????????????????????????????????????????? | | ?????????????????????????????????????????????????? | | ?????????????????????????????????????????????????? | | ?????????????????????????????????????????????????? | | ?????????????????????????????????????????????????? | | ?????????????????????????????#######?????????????? | | ??????????????? ######???????#!!! "#?????????????? | | ??????????????? #""#??????# "#?????????????? | | ??????????????? ??????# "#?????????????? | | ?????????????? #????## ""#????????????## | | ?????????????? #####" ""#???????????? | | ??????????????# ##" ""#???????????"" | | ???????????????# #"" #????????????#"" | | ??????????????????# ####??????????"" | | ?????????????????????# ####???????"" | | ?????????????????????### #??????? | | ???????????????######## #????????" | | ?????????? ; ! @g ???????# | | ???????????????#! * ## % ####???### | | ???????????????#! * "#? """#####X# | | ???????????????#! = ##?? | | ???????????????# !""" #;#???# # | | ???????????????######;#;# #???#### | | ????????????????????## ## #??????### | | ????????????????????? ?# #????????##" * | | ????????????????????###?# #??????????## | | ????????????????????????# #???????????## | | ????????????????????????###????????????##" | | ????????????????????????????????????????#""" | | ???????????????????????????????????????##" | | ???????????????????????????????????????#"" | | ??????????????????????????????????????##""" | | ??????????????????????????????????????#""" | | ??????????????????????????????????????#""" | | ??????????????????????????????????????#"" | | ??????????????????????????????????????#""" | | ??????????????????????????????????????#"" | | ??????????????????????????????????????##"" | | ???????????????????????????????????????#"""" | | ???????????????????????????????????????## | | ????????????????????????????????????????#" | | ????????????????????????????????????????#"""" | +----------------------------------------------------+ Best States ------------- Heat Dissipation 25 Energy Generation 12 Energy Capacity 265 Matter Stores 300 Matter Capacity 300 Sight Range 16 Terrain Scan Density 10 Evasion (%) 40 Recoil Reduction 2 Item Schematics ----------------- None Robot Schematics ------------------ None Fabricated ------------ Nothing Repaired ---------- Nothing Studied --------- None Alien Tech Used ----------------- None Achievements -------------- None Challenges ------------ None Game ------ Seed ChromionTechWheel Manual? 0 Play Time 00:13:28 Cumulative 64.6 hours Start 2026.07.25 @ 19:37:18 End 2026.07.25 @ 19:51:19 Sessions 1 Manual Loads 0 Difficulty Rogue Special Mode None Game No. 277 Rogue 232 Adventurer 45 Explorer 0 Win Type - Total 2 Types 2/0/0/0/0/0/0/0/0/0 Lore% 66 Gallery% 46 Achievement% 44 Wizard Run 0 Options --------- Layout 1 ASCII 0 Keyboard 0 Movement Numpad Keybinds 0 Fullscreen 1 Font 24/Smallcaps Map View 50x35 Zoom Use 0% Tactical HUD 1 Map Filters NONE Filters NONE Steam 1 RUN: f96e416d-141d-4525-a647-a19b4774cdaf